bitfinex/quotes_BTCUSD_20220307
["timestamp","ask_amount","ask_price","bid_price","bid_amount"]
[1646644321465,0.0087917,38348.0,38347.0,0.03035403]
[1646644322624,0.75,38347.0,38346.0,0.00164268]
[1646644322822,1.19798355,38347.0,38346.0,0.00164268]
[1646644323017,0.954113,38347.0,38346.0,0.00164268]
[1646644323218,0.204113,38347.0,38346.0,0.00164268]
[1646644323418,0.208113,38347.0,38346.0,0.00164268]
[1646644323618,0.273377,38347.0,38341.0,0.000232]
[1646644323819,0.1,38346.0,38341.0,0.000232]
[1646644324122,0.1522,38346.0,38341.0,0.000232]
[1646644324517,0.1522,38346.0,38337.0,0.07358765]
[1646644324719,0.05,38342.0,38341.0,0.00023199]
[1646644324919,0.0522,38346.0,38342.0,0.1]
[1646644325118,0.1022,38346.0,38342.0,0.1]
[1646644326967,0.1022,38346.0,38344.0,0.004]
[1646644326968,0.05,38346.0,38344.0,0.004]
[1646644327169,0.05,38346.0,38345.0,0.39241]
[1646644327369,0.05,38346.0,38344.0,0.004]
[1646644327568,0.05,38346.0,38344.0,0.22801809]
[1646644327974,0.0018787,38348.0,38344.0,0.22801809]
[1646644328769,0.0018787,38348.0,38344.0,0.004]
[1646644328971,0.00218767,38345.0,38344.0,0.004]
[1646644329170,0.00218767,38345.0,38343.0,0.00164721]
[1646644330120,0.001913,38344.0,38343.0,0.00164721]
[1646644330314,0.054113,38344.0,38343.0,0.00164721]
[1646644331315,0.001913,38344.0,38343.0,0.00164721]
[1646644331515,0.006913,38344.0,38343.0,0.00164721]
[1646644332114,0.006913,38344.0,38342.0,0.1]
[1646644332315,0.001913,38343.0,38341.0,0.0002323]
[1646644332514,0.001913,38342.0,38337.0,0.07758765]
[1646644332716,0.005,38344.0,38337.0,0.07758765]
[1646644332717,0.00458,38344.0,38337.0,0.07758765]
[1646644332916,0.01546041,38344.0,38333.0,0.3]
[1646644333118,0.00218767,38345.0,38334.0,0.39775677]
[1646644333119,0.01040106,38343.0,38334.0,0.39775677]
[1646644333316,0.01583857,38342.0,38334.0,0.17827625]
[1646644333517,0.01333681,38340.0,38332.0,0.21450796]
[1646644333769,0.01240346,38339.0,38328.0,0.9141]
[1646644333974,0.00218767,38345.0,38328.0,0.9141]
[1646644333975,0.01122623,38338.0,38328.0,0.9141]
[1646644334170,0.05,38335.0,38329.0,0.3]
[1646644334375,0.05,38335.0,38334.0,0.0001142]
[1646644335168,0.1,38335.0,38334.0,0.0001142]
[1646644335370,0.1,38335.0,38323.0,0.3]
[1646644335572,0.104,38335.0,38333.0,0.0001142]
[1646644336370,0.204,38335.0,38333.0,0.0001142]
[1646644336570,0.204,38335.0,38324.0,0.26258528]
[1646644336771,0.5,38335.0,38332.0,0.00023217]
[1646644336971,0.2,38335.0,38332.0,0.00023217]
[1646644337627,0.3,38334.0,38332.0,0.00023217]
[1646644337821,0.3,38334.0,38322.0,0.17503465]
[1646644337822,0.4,38334.0,38322.0,0.17503465]
[1646644338622,0.4,38334.0,38322.0,0.40421211]
[1646644339623,0.404,38334.0,38322.0,0.40421211]
[1646644339821,0.404,38334.0,38318.0,0.4003]
[1646644340027,0.01340647,38332.0,38318.0,0.4003]
[1646644340223,0.0522,38332.0,38318.0,0.4003]
[1646644340422,0.054113,38332.0,38318.0,0.4003]
[1646644340622,0.0522,38332.0,38317.0,9.0]
[1646644340823,0.0522,38332.0,38322.0,0.25974201]
[1646644341471,0.0522,38332.0,38330.0,0.00025002]
[1646644342271,0.1522,38332.0,38330.0,0.00025002]
[1646644342474,0.1522,38332.0,38327.0,0.18340726]
[1646644342671,0.1522,38332.0,38330.0,0.00025002]
[1646644343470,0.0522,38332.0,38330.0,0.00025002]
[1646644343675,0.0522,38332.0,38322.0,0.25974201]
[1646644343873,0.05392823,38332.0,38330.0,0.00025002]
[1646644344923,0.05392823,38332.0,38327.0,0.20914775]
[1646644345125,0.05392823,38332.0,38330.0,0.00025002]
[1646644346123,0.05392823,38332.0,38327.0,0.20346314]
[1646644346326,0.00172823,38332.0,38330.0,0.00024042]
[1646644347324,0.00172823,38332.0,38327.0,0.20346314]
[1646644347526,0.00972823,38332.0,38330.0,0.00024042]
[1646644348526,0.00972823,38332.0,38327.0,0.20346314]
[1646644348777,0.00172823,38332.0,38330.0,0.00024042]
[1646644349377,0.00172823,38332.0,38331.0,0.22341855]
[1646644349578,0.00172823,38332.0,38331.0,0.01]
[1646644350578,0.00172823,38332.0,38331.0,0.2298348]
[1646644351780,0.00172823,38332.0,38331.0,0.5298348]
[1646644351977,0.00172823,38332.0,38331.0,0.2298348]
[1646644353535,0.00672823,38332.0,38331.0,0.9222448]
[1646644354141,0.01524894,38343.0,38332.0,0.00672]
[1646644354335,0.1248,38349.0,38342.0,0.1766833]
[1646644354336,0.01062584,38348.0,38342.0,0.1766833]
[1646644354538,0.01062584,38348.0,38343.0,0.94321123]
[1646644354734,0.4608,38354.0,38345.0,0.06169744]
[1646644354735,0.06105588,38347.0,38345.0,0.06169744]
[1646644354936,0.05,38347.0,38346.0,0.39241]
[1646644355236,0.00021551,38350.0,38347.0,0.1]
[1646644355437,0.00021551,38350.0,38348.0,0.3]
[1646644355636,0.00021551,38350.0,38349.0,0.19767291]
[1646644355838,0.05,38352.0,38349.0,0.91641291]
[1646644356036,0.05,38352.0,38350.0,0.39241]
[1646644356282,0.05,38352.0,38351.0,0.69241]
[1646644356678,0.05,38352.0,38351.0,0.71874]
[1646644357075,0.05,38352.0,38351.0,0.41874]
[1646644357276,0.05,38352.0,38351.0,0.02633]
[1646644358077,0.05,38352.0,38348.0,0.02633]
[1646644358277,0.06198758,38352.0,38347.0,0.1]
[1646644358477,0.06198758,38352.0,38347.0,0.15420954]
[1646644359076,0.00203797,38350.0,38349.0,0.00520276]
[1646644359480,0.00203797,38350.0,38349.0,0.39761776]
[1646644359679,0.00203797,38350.0,38349.0,0.69761776]
[1646644359930,0.00203797,38350.0,38349.0,0.33128276]
[1646644360325,0.00203797,38350.0,38349.0,0.69761776]
[1646644360525,0.00203797,38350.0,38349.0,0.30520276]
[1646644360725,0.00203797,38350.0,38349.0,0.69761776]
[1646644360926,0.05,38355.0,38350.0,1.2]
[1646644361128,0.05,38353.0,38352.0,0.392415]
[1646644361427,0.05,38353.0,38352.0,0.868495]
[1646644361625,0.05,38353.0,38352.0,0.968495]
[1646644363229,0.05,38353.0,38352.0,0.818495]
[1646644363428,0.05,38353.0,38352.0,0.98844836]
[1646644363671,0.05,38353.0,38352.0,0.42608]
[1646644363872,0.05,38353.0,38352.0,0.818495]
[1646644364074,0.05,38353.0,38352.0,0.291875]
[1646644364975,0.00023294,38354.0,38353.0,0.418495]
[1646644365176,0.00023294,38354.0,38353.0,0.64233764]
[1646644365376,0.06142937,38356.0,38353.0,0.89680115]
[1646644365377,0.05,38356.0,38353.0,0.89680115]
[1646644365577,0.00023294,38355.0,38353.0,0.89680115]
[1646644365975,0.00023294,38355.0,38353.0,0.64233764]
[1646644366575,0.0613949,38356.0,38353.0,0.64233764]
[1646644366776,0.01050074,38355.0,38353.0,0.41821903]
[1646644366980,0.01050074,38355.0,38352.0,0.392377]
[1646644367425,0.01050074,38355.0,38349.0,0.16809514]
[1646644367626,0.01050074,38355.0,38350.0,0.392382]
[1646644367828,0.01050074,38355.0,38351.0,0.2005252]
[1646644368029,0.01224398,38353.0,38352.0,0.392382]
[1646644368225,0.00023212,38355.0,38352.0,0.392382]
[1646644369027,0.05,38356.0,38352.0,0.392382]
[1646644369328,0.00147098,38354.0,38352.0,0.392382]
[1646644369728,0.00147098,38354.0,38353.0,0.392382]
[1646644370332,0.00147098,38354.0,38349.0,0.00249283]
[1646644371674,0.0002224,38353.0,38349.0,0.00249283]
[1646644371875,0.0002224,38353.0,38350.0,0.392382]
[1646644372275,0.0002224,38353.0,38349.0,0.00249283]
[1646644372476,0.0002224,38353.0,38349.0,0.1643679]
[1646644372677,0.00147098,38354.0,38349.0,0.00249283]
[1646644372878,0.000214,38353.0,38349.0,0.00249283]
[1646644373080,0.18165,38352.0,38349.0,0.00249283]
[1646644373278,0.001913,38350.0,38349.0,0.00249283]
[1646644373480,0.23385,38350.0,38349.0,0.00249283]
[1646644374277,0.260773,38350.0,38349.0,0.00249283]
[1646644374921,0.260773,38350.0,38347.0,0.09249283]
[1646644375123,0.001913,38348.0,38347.0,0.09249283]
[1646644375325,0.183563,38348.0,38347.0,0.09249283]
[1646644375533,0.183563,38348.0,38335.0,0.0008577]
[1646644375534,0.065262,38345.0,38335.0,0.0008577]
[1646644375727,0.18165,38344.0,38335.0,0.0008577]
[1646644375924,0.05,38341.0,38335.0,0.0008577]
[1646644376126,0.05,38341.0,38339.0,0.21909967]
[1646644376526,0.18165,38340.0,38339.0,0.21909967]
[1646644376724,0.05,38341.0,38339.0,0.21909967]
[1646644378026,0.05,38341.0,38340.0,0.392382]
[1646644378228,0.05,38341.0,38340.0,0.692382]
[1646644378429,0.05,38341.0,38340.0,0.392382]
[1646644379071,0.05,38341.0,38339.0,0.58638079]
[1646644379469,0.02501,38340.0,38339.0,0.59773676]
[1646644380271,0.02501,38340.0,38339.0,0.89773676]
[1646644381873,0.02501,38340.0,38339.0,0.692382]
[1646644382425,0.02501,38340.0,38339.0,0.718462]
[1646644382822,0.00163545,38344.0,38341.0,0.02608]
[1646644383026,0.00163545,38344.0,38342.0,0.392382]
[1646644383027,0.02392,38343.0,38342.0,0.392382]
[1646644383224,0.00024288,38349.0,38342.0,0.787177]
[1646644383427,0.1362,38366.0,38347.0,0.01518769]
[1646644383623,0.1362,38366.0,38352.0,0.06831916]
[1646644383826,0.05,38359.0,38356.0,0.1836702]
[1646644384824,0.05,38359.0,38357.0,0.392413]
[1646644385028,0.05024357,38359.0,38356.0,0.1836702]
[1646644385225,0.05024357,38359.0,38357.0,0.392413]
[1646644385423,0.05024357,38359.0,38355.0,0.392413]
[1646644385624,0.05024357,38359.0,38351.0,0.004]
[1646644385826,0.05,38359.0,38351.0,0.004]
[1646644386275,0.05024357,38359.0,38351.0,0.004]
[1646644386877,0.05024357,38359.0,38353.0,0.27523818]
[1646644387079,0.05,38359.0,38353.0,0.27523818]
[1646644387279,0.00024358,38357.0,38353.0,0.27523818]
[1646644387482,0.00024358,38357.0,38354.0,0.392413]
[1646644387682,0.00024358,38357.0,38350.0,0.65451987]
[1646644387879,0.00024358,38357.0,38351.0,0.392413]
[1646644388079,0.00024358,38357.0,38352.0,0.692413]
[1646644388281,0.01145405,38357.0,38353.0,0.392413]
[1646644388480,0.01145405,38357.0,38352.0,0.3]
[1646644388481,0.01179475,38356.0,38352.0,0.3]
[1646644388680,0.01439455,38355.0,38350.0,0.56195991]
[1646644388880,0.0002389,38356.0,38355.0,0.0287891]
[1646644389383,0.01175807,38356.0,38355.0,0.0287891]
[1646644389581,0.00140708,38358.0,38355.0,0.0287891]
[1646644389781,0.00023889,38357.0,38356.0,0.392413]
[1646644390025,0.00023889,38357.0,38355.0,0.22307577]
[1646644390226,0.00023889,38357.0,38356.0,0.392413]
[1646644390423,0.00023889,38357.0,38355.0,0.22307577]
[1646644390622,0.00140708,38358.0,38355.0,0.0287891]
[1646644391026,0.00164597,38358.0,38355.0,0.0287891]
[1646644391922,0.00140708,38358.0,38355.0,0.0287891]
[1646644392124,0.00163806,38358.0,38355.0,0.0287891]
[1646644393126,0.00140708,38358.0,38355.0,0.0287891]
[1646644393326,0.00163806,38358.0,38355.0,0.0287891]
[1646644393681,0.00163806,38358.0,38356.0,0.00334646]
[1646644394281,0.00140708,38358.0,38356.0,0.00334646]
[1646644395384,0.18685,38357.0,38356.0,0.00334646]
[1646644395982,0.18685,38357.0,38356.0,0.00295546]
[1646644398819,0.18825572,38357.0,38356.0,0.00231188]
[1646644401372,0.00140572,38357.0,38356.0,0.00231188]
[1646644401775,0.00140572,38357.0,38356.0,0.21269327]
[1646644401972,0.00140572,38357.0,38356.0,0.20969327]
[1646644402172,0.00140572,38357.0,38356.0,0.44727708]
[1646644403275,0.00140572,38357.0,38356.0,0.20969327]
[1646644403672,0.00440572,38357.0,38356.0,0.00231589]
[1646644404918,0.00140572,38357.0,38356.0,0.00231589]
[1646644405817,0.00240572,38357.0,38356.0,0.00231589]
[1646644406018,0.00240572,38357.0,38356.0,0.69472889]
[1646644406518,0.00240572,38357.0,38356.0,1.02927745]
[1646644406918,0.00140572,38357.0,38356.0,1.32927745]
[1646644407920,0.00140572,38357.0,38356.0,1.35535745]
[1646644408320,0.00140572,38357.0,38356.0,1.32927745]
[1646644408522,0.00140572,38357.0,38356.0,0.93686445]
[1646644408774,0.00140572,38357.0,38356.0,0.93454856]
[1646644409370,0.00140572,38357.0,38356.0,1.32696156]
[1646644409971,0.00140572,38357.0,38356.0,0.93454856]
[1646644410572,0.00140572,38357.0,38356.0,0.63454856]
[1646644410775,0.00140572,38357.0,38356.0,1.02696156]
[1646644411570,0.00140572,38357.0,38356.0,0.93454856]
[1646644411970,0.00140572,38357.0,38356.0,0.99120398]
[1646644412625,0.00140572,38357.0,38356.0,1.38361698]
[1646644413430,0.00140572,38357.0,38356.0,2.38361698]
[1646644413629,0.00140572,38357.0,38356.0,2.08361698]
[1646644414230,0.00140572,38357.0,38356.0,1.69120398]
[1646644415031,0.00140572,38357.0,38356.0,1.71728398]
[1646644415231,0.00140572,38357.0,38356.0,2.10969698]
[1646644415430,0.00140572,38357.0,38356.0,2.08361698]
[1646644415830,0.00140572,38357.0,38356.0,2.18361698]
[1646644417176,0.00140572,38357.0,38356.0,1.69120398]
[1646644417378,0.00140572,38357.0,38356.0,2.08361698]
[1646644417777,0.00140572,38357.0,38356.0,2.10969698]
[1646644418579,0.00140572,38357.0,38356.0,2.08361698]
[1646644418778,0.00023148,38358.0,38356.0,2.08361698]
[1646644418979,0.0011,38371.0,38362.0,0.16869166]
[1646644419379,0.05,38367.0,38362.0,0.16869166]
[1646644419921,0.01524971,38365.0,38362.0,0.30480348]
[1646644420422,0.01524971,38365.0,38362.0,0.1032122]
[1646644421022,0.01548117,38365.0,38362.0,0.1032122]
[1646644421424,0.01548117,38365.0,38363.0,0.29988391]
[1646644421624,0.01548117,38365.0,38364.0,0.692413]
[1646644421924,0.06430734,38367.0,38364.0,0.692413]
[1646644422223,0.00023146,38366.0,38364.0,0.692413]
[1646644422524,0.01011493,38365.0,38364.0,0.392413]
[1646644423877,0.01011493,38365.0,38364.0,0.39032169]
[1646644424273,0.01011493,38365.0,38363.0,0.00315112]
[1646644424579,0.188961,38364.0,38363.0,0.00315112]
[1646644426072,0.06034639,38365.0,38363.0,0.00315112]
[1646644426274,0.188961,38364.0,38363.0,0.00315112]
[1646644426576,0.00023146,38365.0,38363.0,0.00315112]
[1646644426774,0.05,38367.0,38363.0,0.00315112]
[1646644426974,0.00023146,38365.0,38363.0,0.00315112]
[1646644427428,0.00023146,38365.0,38363.0,0.18614608]
[1646644427628,0.00023146,38365.0,38363.0,0.35278215]
[1646644427829,0.00023146,38365.0,38364.0,0.392285]
[1646644428027,0.05,38367.0,38363.0,0.18614608]
[1646644428230,0.00023146,38366.0,38364.0,0.392285]
[1646644428529,0.00023146,38366.0,38363.0,0.18614608]
[1646644429027,0.05,38367.0,38363.0,0.1867952]
[1646644429028,0.00137258,38364.0,38363.0,0.1867952]
[1646644431575,0.00137258,38364.0,38363.0,0.00380024]
[1646644432376,0.19033358,38364.0,38363.0,0.00380024]
[1646644432577,0.00137258,38364.0,38363.0,0.00380024]
[1646644433177,0.19033358,38364.0,38363.0,0.00380024]
[1646644433377,0.00137258,38364.0,38363.0,0.00380024]
[1646644433577,0.19033358,38364.0,38363.0,0.00380024]
[1646644433778,0.00137258,38364.0,38363.0,0.00380024]
[1646644434179,0.00137258,38364.0,38363.0,0.00455356]
[1646644435037,0.19033358,38364.0,38363.0,0.00455356]
[1646644435238,0.00137258,38364.0,38363.0,0.00455356]
[1646644435938,0.00137258,38364.0,38363.0,0.00354882]
[1646644436540,0.19033358,38364.0,38363.0,0.00354882]
[1646644437336,0.24253358,38364.0,38363.0,0.00354882]
[1646644439174,0.24253358,38364.0,38363.0,0.00108607]
[1646644439775,0.24253358,38364.0,38363.0,0.00081008]
[1646644443725,0.24253358,38364.0,38363.0,0.0043589]
[1646644444128,0.24253358,38364.0,38363.0,0.00354882]
[1646644444927,0.34253358,38364.0,38363.0,0.00348747]
[1646644445129,0.39444658,38364.0,38362.0,0.1032122]
[1646644445333,0.001913,38363.0,38362.0,0.1032122]
[1646644445528,0.243074,38363.0,38362.0,0.1032122]
[1646644445729,1.05823838,38362.0,38356.0,0.63454856]
[1646644445929,0.143513,38361.0,38356.0,0.63454856]
[1646644446190,0.188961,38360.0,38356.0,0.63454856]
[1646644446383,0.0522,38359.0,38356.0,0.63454856]
[1646644446583,0.188961,38358.0,38356.0,0.63454856]
[1646644446783,0.0522,38357.0,38356.0,0.63454856]
[1646644446983,0.241161,38357.0,38356.0,0.63454856]
[1646644447883,0.241161,38357.0,38356.0,0.59174856]
[1646644449487,0.0522,38357.0,38356.0,0.59174856]
[1646644449790,0.07501,38358.0,38356.0,0.7867089]
[1646644450052,0.07501,38358.0,38356.0,1.7867089]
[1646644451048,0.07501,38358.0,38357.0,0.3]
[1646644451250,0.07501,38358.0,38356.0,1.7867089]
[1646644451450,0.01452365,38359.0,38358.0,0.15001999]
[1646644451650,0.06544083,38360.0,38356.0,1.7867089]
[1646644451854,0.06487458,38357.0,38356.0,1.7867089]
[1646644452051,0.00282174,38361.0,38356.0,1.7867089]
[1646644452253,0.00021483,38360.0,38356.0,1.7867089]
[1646644452452,0.00021483,38360.0,38357.0,0.392285]
[1646644452651,0.00021483,38360.0,38357.0,0.52676191]
[1646644452852,0.00021483,38360.0,38357.0,0.34230499]
[1646644453050,0.00282174,38361.0,38357.0,0.34230499]
[1646644453252,0.00282174,38361.0,38357.0,0.35532499]
[1646644453550,0.00021483,38360.0,38357.0,0.35532499]
[1646644454379,0.00282174,38361.0,38357.0,0.35532499]
[1646644454584,0.00021483,38360.0,38358.0,0.06172214]
[1646644454782,0.00021483,38360.0,38359.0,0.392285]
[1646644455581,0.00282174,38361.0,38359.0,0.392285]
[1646644455781,0.00303656,38361.0,38359.0,0.392285]
[1646644455983,0.00303656,38361.0,38356.0,1.59174856]
[1646644455984,0.542326,38360.0,38356.0,1.59174856]
[1646644456186,0.170964,38357.0,38356.0,1.59174856]
[1646644456383,0.525077,38357.0,38356.0,1.20027856]
[1646644456581,0.623164,38357.0,38356.0,1.20027856]
[1646644456781,0.623164,38357.0,38356.0,0.80880456]
[1646644456993,0.625077,38357.0,38356.0,0.80880456]
[1646644457184,0.325077,38357.0,38356.0,0.80880456]
[1646644457837,0.325077,38357.0,38356.0,0.60880456]
[1646644458036,0.325077,38357.0,38356.0,0.51740457]
[1646644458438,0.625077,38357.0,38356.0,0.51740457]
[1646644459041,0.620077,38357.0,38356.0,0.51740457]
[1646644459238,0.620077,38357.0,38356.0,0.51859794]
[1646644459440,0.62127037,38357.0,38356.0,0.51740457]
[1646644459639,0.620077,38357.0,38356.0,0.51740457]
[1646644459839,0.99176337,38357.0,38356.0,0.51740457]
[1646644461979,0.99876337,38357.0,38356.0,0.51740457]
[1646644462180,0.627077,38357.0,38356.0,0.51740457]
[1646644463181,0.320077,38357.0,38356.0,0.51740457]
[1646644463982,0.326077,38357.0,38356.0,0.51740457]
[1646644465435,0.320077,38357.0,38356.0,0.51740457]
[1646644465635,0.220077,38357.0,38356.0,0.51740457]
[1646644465833,0.320077,38357.0,38356.0,0.51740457]
[1646644466834,0.220077,38357.0,38356.0,0.51740457]
[1646644467132,0.320077,38357.0,38356.0,0.51740457]
[1646644467734,0.320077,38357.0,38356.0,0.31740457]
[1646644468135,0.220077,38357.0,38356.0,0.18190457]
[1646644468338,0.320077,38357.0,38356.0,0.18190457]
[1646644468990,0.32128319,38357.0,38356.0,0.18287883]
[1646644469187,0.32128319,38357.0,38356.0,0.18190457]
[1646644469188,0.22225745,38357.0,38356.0,0.18190457]
[1646644469388,0.32128319,38357.0,38356.0,0.18190457]
[1646644470591,0.22128319,38357.0,38356.0,0.18190457]
[1646644470789,0.32128319,38357.0,38356.0,0.18190457]
[1646644471689,0.22128319,38357.0,38356.0,0.18190457]
[1646644471890,0.32128319,38357.0,38356.0,0.18190457]
[1646644472091,0.62513961,38357.0,38356.0,0.02321703]
[1646644472290,0.62513961,38357.0,38355.0,0.02394685]
[1646644472291,1.2,38356.0,38355.0,0.02394685]
[1646644472530,1.2,38356.0,38348.0,0.00021419]
[1646644472531,0.065259,38352.0,38348.0,0.00021419]
[1646644472735,0.74345237,38351.0,38348.0,0.00021419]
[1646644472933,0.80871037,38351.0,38348.0,0.00021419]
[1646644473134,0.165954,38349.0,38348.0,0.00021419]
[1646644473335,0.66846868,38349.0,38348.0,0.00021419]
[1646644473534,0.02608,38346.0,38338.0,0.01302]
[1646644473732,0.15,38344.0,38338.0,0.01302]
[1646644473933,0.165954,38341.0,38340.0,0.00085684]
[1646644474132,0.267314,38341.0,38340.0,0.00085684]
[1646644474331,0.367314,38341.0,38340.0,0.00085684]
[1646644474830,0.367314,38341.0,38333.0,0.17773679]
[1646644475836,0.363314,38341.0,38333.0,0.17773679]
[1646644476033,0.363314,38341.0,38335.0,0.00021513]
[1646644476893,0.363314,38341.0,38338.0,0.20784864]
[1646644477100,0.09736,38341.0,38338.0,0.20784864]
[1646644477695,0.04516,38341.0,38338.0,0.20784864]
[1646644477894,0.04516,38341.0,38339.0,0.18286515]
[1646644478093,0.04516,38341.0,38336.0,0.1971075]
[1646644478094,0.001,38341.0,38336.0,0.1710275]
[1646644478294,0.001,38341.0,38336.0,0.17081237]
[1646644478498,0.001,38341.0,38338.0,0.00021512]
[1646644478993,0.00231353,38340.0,38338.0,0.00021512]
[1646644479396,0.392386,38339.0,38338.0,0.00021512]
[1646644479596,0.00231353,38340.0,38331.0,0.01]
[1646644479796,0.00231353,38340.0,38337.0,0.00021464]
[1646644479797,0.05,38339.0,38337.0,0.00021464]
[1646644480030,0.006,38339.0,38337.0,0.00021464]
[1646644480831,0.006,38339.0,38338.0,0.2787313]
[1646644481231,0.006,38339.0,38338.0,0.45653713]
[1646644481634,0.3522,38346.0,38342.0,0.21662706]
[1646644481832,0.392386,38345.0,38342.0,0.21662706]
[1646644482036,0.0522,38344.0,38342.0,0.21662706]
[1646644482234,0.165894,38343.0,38342.0,0.21662706]
[1646644483886,0.0522,38347.0,38342.0,0.40092653]
[1646644484178,0.005,38343.0,38342.0,0.79331253]
[1646644484879,0.05021462,38353.0,38343.0,1.22608]
[1646644485080,0.00021462,38353.0,38345.0,0.418466]
[1646644485281,0.05,38351.0,38347.0,0.392386]
[1646644486080,0.05,38351.0,38346.0,0.02608]
[1646644486081,0.05,38351.0,38350.0,0.55767302]
[1646644486282,0.05,38351.0,38350.0,0.392386]
[1646644486581,0.05,38351.0,38348.0,0.42014395]
[1646644487282,0.05,38351.0,38346.0,0.17654764]
[1646644487925,0.05,38351.0,38346.0,0.17633258]
[1646644488126,0.05,38351.0,38346.0,0.17654763]
[1646644488325,0.05,38351.0,38347.0,0.15699579]
[1646644488929,0.00308723,38350.0,38349.0,0.00091885]
[1646644490128,0.39547323,38350.0,38349.0,0.00091885]
[1646644490928,0.00308723,38350.0,38349.0,0.00091885]
[1646644491378,0.39547323,38350.0,38349.0,0.00091885]
[1646644491777,0.16898123,38350.0,38349.0,0.00091885]
[1646644491977,0.39547323,38350.0,38349.0,0.00091885]
[1646644493179,0.16898123,38350.0,38349.0,0.00091885]
[1646644493378,0.00308723,38350.0,38349.0,0.00091885]
[1646644495331,0.00308723,38350.0,38349.0,0.17872977]
[1646644495731,0.39547323,38350.0,38349.0,0.00091885]
[1646644496533,0.16898123,38350.0,38349.0,0.00091885]
[1646644496736,0.00308723,38350.0,38349.0,0.00091885]
[1646644498686,0.74767323,38350.0,38349.0,0.00091885]
[1646644499683,0.44767323,38350.0,38349.0,0.00091885]
[1646644505637,0.05528723,38350.0,38349.0,0.00091885]
[1646644506279,0.00308723,38350.0,38348.0,0.08088665]
[1646644506475,0.00308723,38350.0,38347.0,0.74331261]
[1646644506476,0.392386,38349.0,38347.0,0.74331261]
[1646644507276,0.93451,38348.0,38347.0,0.74331261]
[1646644507476,1.100404,38348.0,38347.0,0.74331261]
[1646644507677,3.45499146,38348.0,38347.0,0.74331261]
[1646644508076,3.45999146,38348.0,38347.0,0.74331261]
[1646644508976,0.83951,38348.0,38347.0,1.04331261]
[1646644509180,0.78731,38348.0,38347.0,0.83477656]
[1646644509378,0.78231,38348.0,38347.0,0.92624051]
[1646644509579,1.174696,38348.0,38347.0,0.92624051]
[1646644510839,3.27625717,38348.0,38347.0,0.92624051]
[1646644511033,1.226896,38348.0,38347.0,0.92624051]
[1646644511231,1.69851218,38348.0,38347.0,0.92624051]
[1646644511430,1.69851218,38348.0,38347.0,0.92595872]
[1646644512033,1.76377918,38348.0,38347.0,0.92595872]
[1646644512236,1.76569218,38348.0,38347.0,0.92595872]
[1646644512633,1.86559218,38348.0,38347.0,0.92595872]
[1646644513036,1.428709,38348.0,38347.0,0.92595872]
[1646644513786,1.428709,38348.0,38347.0,0.926813]
[1646644513787,1.32990251,38348.0,38347.0,0.926813]
[1646644513983,1.42980251,38348.0,38347.0,0.926813]
[1646644514185,1.74835419,38348.0,38347.0,0.926813]
[1646644514383,1.42980251,38348.0,38347.0,0.926813]
[1646644514983,1.80141869,38348.0,38347.0,0.926813]
[1646644515483,1.80141869,38348.0,38347.0,0.71886327]
[1646644515484,2.1409853,38348.0,38347.0,0.71886327]
[1646644515684,1.76936912,38348.0,38347.0,0.71886327]
[1646644516485,1.66946912,38348.0,38347.0,0.71886327]
[1646644516683,1.7258772,38348.0,38347.0,0.71886327]
[1646644516887,1.66946912,38348.0,38347.0,0.71886327]
[1646644517086,1.76936912,38348.0,38347.0,0.69022765]
[1646644517734,1.76936912,38348.0,38347.0,0.29857865]
[1646644518035,0.257251,38347.0,38338.0,0.01302]
[1646644518235,0.001913,38343.0,38338.0,0.01302]
[1646644518436,0.446499,38343.0,38338.0,0.01302]
[1646644518635,1.328809,38343.0,38338.0,0.01302]
[1646644519534,1.328809,38343.0,38341.0,0.0002149]
[1646644520040,0.784223,38343.0,38342.0,0.51662706]
[1646644520237,1.174696,38343.0,38342.0,0.21662706]
[1646644520437,0.948204,38343.0,38342.0,0.21662706]
[1646644521034,1.174696,38343.0,38342.0,0.21662706]
[1646644522378,1.474696,38343.0,38342.0,0.21662706]
[1646644522583,1.676896,38343.0,38342.0,0.21662706]
[1646644523880,1.67935867,38343.0,38342.0,0.21662706]
[1646644524282,1.37935867,38343.0,38342.0,0.21662706]
[1646644524481,1.44463067,38343.0,38342.0,0.21662706]
[1646644524928,1.44654367,38343.0,38342.0,0.10730352]
[1646644525136,1.44654367,38343.0,38331.0,0.01]
[1646644525137,0.02608,38341.0,38331.0,0.01]
[1646644525332,0.0999,38335.0,38331.0,0.01]
[1646644525540,0.001913,38332.0,38331.0,0.01]
[1646644525729,0.220007,38332.0,38331.0,0.01]
[1646644526228,0.270007,38332.0,38331.0,0.01]
[1646644526428,0.369907,38332.0,38331.0,0.01]
[1646644526829,0.469907,38332.0,38331.0,0.01]
[1646644527227,0.419907,38332.0,38331.0,0.01]
[1646644527431,0.05,38335.0,38332.0,0.1472139]
[1646644527632,0.11296661,38333.0,38332.0,0.1472139]
[1646644527928,0.55753061,38333.0,38332.0,0.1472139]
[1646644532187,0.65753061,38333.0,38332.0,0.1472139]
[1646644534435,0.60533061,38333.0,38332.0,0.1472139]
[1646644536185,0.60533061,38333.0,38332.0,0.1422139]
[1646644540233,0.65533061,38333.0,38332.0,0.1422139]
[1646644541131,0.60533061,38333.0,38332.0,0.1422139]
[1646644541936,0.60533061,38333.0,38314.0,0.72179645]
[1646644541937,0.9,38331.0,38314.0,0.72179645]
[1646644542136,0.9,38331.0,38317.0,9.0]
[1646644542137,0.05,38326.0,38317.0,9.0]
[1646644542343,0.05,38326.0,38325.0,0.00085539]
[1646644542535,1.276874,38326.0,38325.0,0.00085539]
[1646644542836,1.376874,38326.0,38325.0,0.00085539]
[1646644543040,1.516874,38326.0,38325.0,0.00085539]
[1646644543236,0.02608,38325.0,38317.0,9.0]
[1646644543439,0.02608,38323.0,38317.0,9.0]
[1646644543697,0.418444,38320.0,38317.0,9.0]
[1646644543888,0.51101781,38318.0,38317.0,9.0]
[1646644544086,1.226874,38318.0,38317.0,9.0]
[1646644544292,1.44552471,38318.0,38317.0,9.0]
[1646644544487,1.44552316,38318.0,38317.0,9.0]
[1646644544887,1.44552161,38318.0,38317.0,9.0]
[1646644545086,1.44552006,38318.0,38317.0,9.0]
[1646644545986,1.44551851,38318.0,38317.0,9.0]
[1646644546388,1.44851851,38318.0,38317.0,9.0]
[1646644547188,1.44851851,38318.0,38317.0,8.995]